fUST/lending_fUST_20251103
["ID","MTS","AMOUNT","RATE_DAILY","PERIOD"]
[392911759,1762129258513,500.0,0.00037561,60]
[392911760,1762129259387,500.0,0.00037561,60]
[392911761,1762129260436,500.0,0.00037561,60]
[392911762,1762129267027,500.0,0.00037561,60]
[392911763,1762129270582,576.21,0.00037561,60]
[392911764,1762129271031,500.0,0.00037561,60]
[392911766,1762129272657,572.84,0.00037561,60]
[392911767,1762129274439,221.81058275,0.00037561,60]
[392911768,1762129274967,340.76,0.00037561,60]
[392911769,1762129275854,500.0,0.00037561,60]
[392911770,1762129276103,316.11,0.00037561,60]
[392911771,1762129277324,501.87279397,0.00037561,60]
[392911772,1762129278105,342.88640414,0.00037561,60]
[392911774,1762129280214,255.30554012,0.00037561,60]
[392911776,1762129280469,336.87,0.00037561,60]
[392911777,1762129280576,500.0,0.00037561,60]
[392911778,1762129280837,163.28,0.00037561,60]
[392911779,1762129282862,617.34383107,0.00037561,60]
[392911780,1762129283195,196.95,0.00017812,2]
[392911781,1762129287985,501.76514538,0.00037561,60]
[392911782,1762129289727,501.16406885,0.00037561,60]
[392911783,1762129291231,500.0,0.00037561,60]
[392911784,1762129291621,502.92658917,0.00037561,60]
[392911785,1762129291696,500.0,0.00037561,60]
[392911786,1762129292193,500.0,0.00037561,60]
[392911787,1762129293438,599.76,0.00037561,60]
[392911788,1762129293754,503.40559302,0.00037561,60]
[392911789,1762129297003,500.0,0.00037561,60]
[392911791,1762129300528,502.91709275,0.00037561,60]
[392911792,1762129300802,500.0,0.00037561,60]
[392911793,1762129301045,500.0,0.00037561,60]
[392911794,1762129301330,248.45,0.00037561,60]
[392911795,1762129303886,511.88409893,0.00037561,60]
[392911796,1762129306956,296.01,0.00037561,60]
[392911797,1762129307251,502.141299,0.00037561,60]
[392911798,1762129311228,503.2960675,0.00037561,60]
[392911799,1762129312343,500.0,0.00037561,60]
[392911800,1762129317204,505.89593939,0.00037561,60]
[392911801,1762129318957,500.0,0.00037561,60]
[392911802,1762129319240,500.0,0.00037561,60]
[392911803,1762129319464,500.0,0.00037561,60]
[392911804,1762129319703,482.9,0.00037561,60]
[392911805,1762129319792,500.0,0.00037561,60]
[392911806,1762129321424,503.66301333,0.00037561,60]
[392911807,1762129323238,502.38186001,0.00037561,60]
[392911808,1762129327230,348.6,0.00037561,60]
[392911809,1762129330094,500.0,0.00037561,60]
[392911810,1762129333340,502.4155287,0.00037561,60]
[392911811,1762129333895,635.33535867,0.00037561,60]
[392911812,1762129334386,394.06,0.0001889,3]
[392911813,1762129338065,500.0,0.00037561,60]
[392911814,1762129338233,502.56864621,0.00037561,60]
[392911815,1762129339781,500.0,0.00037561,60]
[392911816,1762129339995,564.05258457,0.00037561,60]
[392911817,1762129343258,500.0,0.00037561,60]
[392911818,1762129343480,216.42,0.00037561,60]
[392911819,1762129345300,197.03,0.0001889,3]
[392911820,1762129346898,500.0,0.00037561,60]
[392911821,1762129347162,314.53,0.00037561,60]
[392911822,1762129352870,500.0,0.00037561,60]
[392911823,1762129353010,500.0,0.00037561,60]
[392911824,1762129353113,500.0,0.00037561,60]
[392911825,1762129353245,500.0,0.00037561,60]
[392911826,1762129353361,500.0,0.00037561,60]
[392911827,1762129353477,339.17,0.00037561,60]
[392911828,1762129353602,295.95,0.00037561,60]
[392911829,1762129354919,501.04418349,0.00037561,60]
[392911830,1762129355280,502.02211305,0.00037561,60]
[392911831,1762129355982,591.11,0.0001889,3]
[392911832,1762129356754,500.72552234,0.00037561,60]
[392911833,1762129357101,500.0,0.00037561,60]
[392911834,1762129357339,253.29,0.00037561,60]
[392911835,1762129359050,500.0,0.00037561,60]
[392911836,1762129359218,501.80968506,0.00037561,60]
[392911837,1762129359298,504.80311716,0.00037561,60]
[392911838,1762129361888,500.0,0.00037561,60]
[392911839,1762129362537,501.21150247,0.00037561,60]
[392911840,1762129363740,500.0,0.00037561,60]
[392911841,1762129364277,502.05339019,0.00037561,60]
[392911842,1762129374411,500.0,0.00037561,60]
[392911843,1762129376910,472.11888331,0.00037561,60]
[392911844,1762129378638,502.57935475,0.00037561,60]
[392911845,1762129380329,500.0,0.00037561,60]
[392911846,1762129382669,502.82990533,0.00037561,60]
[392911847,1762129383609,500.0,0.00037561,60]
[392911848,1762129385438,500.0,0.00037561,60]
[392911849,1762129386564,500.0,0.00037561,60]
[392911850,1762129389083,500.0,0.00037561,60]
[392911851,1762129389470,178.4,0.00037561,60]
[392911852,1762129390488,333.33114707,0.00037561,60]
[392911853,1762129391866,8588.0,0.00018,2]
[392911854,1762129393244,500.0,0.00037561,60]
[392911855,1762129394508,500.0,0.00037561,60]
[392911856,1762129397706,507.92,0.00037561,60]
[392911857,1762129404684,500.0,0.00037561,60]
[392911858,1762129406957,500.0,0.00037561,60]
[392911860,1762129415301,500.0,0.00037561,60]
[392911861,1762129422156,166.88742489,0.00037561,60]
[392911862,1762129427438,500.0,0.00037561,60]
[392911863,1762129429175,500.0,0.00037561,60]
[392911864,1762129435594,500.0,0.00037561,60]
[392911865,1762129435897,243.82,0.00037561,60]
[392911866,1762129439729,500.0,0.00037561,60]
[392911867,1762129439948,436.77,0.00037561,60]
[392911868,1762129443356,500.0,0.00037561,60]
[392911872,1762129450437,500.0,0.00037561,60]
[392911873,1762129450670,500.0,0.00037561,60]
[392911874,1762129450915,532.57,0.00037561,60]
[392911875,1762129469343,500.0,0.00037561,60]
[392911876,1762129469597,177.28,0.00037561,60]
[392911877,1762129471404,500.0,0.00037561,60]
[392911878,1762129471634,189.31,0.00037561,60]
[392911879,1762129475577,500.0,0.00037561,60]
[392911880,1762129481678,500.0,0.00037561,60]
[392911881,1762129500089,458.60370607,0.00037561,60]
[392911882,1762129502054,500.0,0.00037561,60]
[392911883,1762129505439,500.0,0.00037561,60]
[392911885,1762129507818,503.07439644,0.00037561,60]
[392911886,1762129509449,151.0,0.00037561,60]
[392911887,1762129509542,500.68924421,0.00037561,60]
[392911888,1762129510051,156.587,0.00037561,60]
[392911889,1762129510820,162.380719,0.00037561,60]
[392911890,1762129511455,168.3888056,0.00037561,60]
[392911891,1762129512074,174.61919141,0.00037561,60]
[392911892,1762129512761,181.08010149,0.00037561,60]
[392911893,1762129513386,187.78006525,0.00037561,60]
[392911894,1762129514002,194.72792766,0.00037561,60]
[392911897,1762129515013,201.93286099,0.00037561,60]
[392911898,1762129515190,500.0,0.00037561,60]
[392911899,1762129515640,201.93286099,0.00037561,60]
[392911900,1762129517450,501.61785247,0.00037561,60]
[392911901,1762129520658,500.0,0.00037561,60]
[392911913,1762129562717,313.48108728,0.00037561,60]
[392911914,1762129569562,500.0,0.00037561,60]
[392911915,1762129571405,577.24,0.00037561,60]
[392911916,1762129578528,500.0,0.00037561,60]
[392911917,1762129583873,447.00535159,0.00037561,60]
[392911920,1762129613965,257.75,0.00037561,60]
[392911923,1762129671202,1391.948945,0.0001774,2]
[392911924,1762129677413,500.0,0.00037561,60]
[392911925,1762129679937,23000.0,0.00037561,60]
[392911926,1762129680850,500.0,0.00037561,60]
[392911927,1762129682690,500.0,0.00037561,60]
[392911929,1762129694355,500.0,0.00037561,60]
[392911930,1762129696310,501.06626271,0.00037561,60]
[392911933,1762129703771,7066.06992856,0.00017,2]
[392911938,1762129751732,151.0,0.0002,7]
[392911939,1762129763941,293.711961,0.0002,7]
[392911949,1762129805455,2000.0,0.0002,7]
[392911950,1762129807955,4337.3060362,0.00017707,2]
[392911951,1762129808082,-169.43549047,0.00018381,2]
[392911952,1762129808104,-241.0,0.00018381,2]
[392911953,1762129808125,-193.53424606,0.00018411,2]
[392911954,1762129822447,1204.81766467,0.00018312,2]
[392912007,1762129832694,-5000.0,0.00018227,2]
[392912009,1762129832703,-141.04635675,0.00018411,2]
[392912011,1762129832714,-168.0,0.00018442,2]
[392912013,1762129832724,-710.26893607,0.00018656,2]
[392912016,1762129832736,-1012.24925904,0.00018656,2]
[392912018,1762129832748,-59.36084584,0.00018666,2]
[392912020,1762129832761,-108.63915416,0.00018666,2]
[392912022,1762129832770,-168.0,0.00018671,2]
[392912024,1762129832781,-168.0,0.00018685,2]
[392912027,1762129832791,-164.21961969,0.00018689,2]
[392912029,1762129832802,-168.0,0.00018742,2]
[392912031,1762129832813,-1200.0,0.00018773,2]
[392912033,1762129832823,-300.0,0.00018774,2]
[392912035,1762129832832,-300.0,0.00018774,2]
[392912037,1762129832842,-300.0,0.00018774,2]
[392912039,1762129832852,-294.0,0.00018774,2]
[392912041,1762129832863,-300.0,0.00018774,2]
[392912043,1762129832873,-77693.6700542,0.00018775,2]
[392912045,1762129832885,-3063.93994465,0.00018775,2]
[392912047,1762129832897,-1278.9470505,0.00018775,2]
[392912050,1762129832910,-189703.88405245,0.00018775,2]
[392912052,1762129832922,-29474.49949893,0.00018775,2]
[392912054,1762129832935,-27326.99999999,0.00018775,2]
[392912056,1762129832947,-23600.62483965,0.00018775,2]
[392912059,1762129832959,-1081.48202957,0.00018775,2]
[392912061,1762129832971,-220301.66730863,0.00018775,2]
[392912063,1762129832982,-850.00614396,0.00018775,2]
[392912121,1762129838476,-20811.3872275,0.00018775,2]
[392912123,1762129838489,-20786.9105666,0.00018775,2]
[392912129,1762129838532,-66716.37722969,0.00018775,2]
[392912147,1762129838696,-2309.60405368,0.00018775,2]
[392912150,1762129838710,-1000.0,0.00018781,2]
[392912152,1762129838720,-1000.0,0.00018781,2]
[392912154,1762129838730,-424.24222295,0.00018781,2]
[392912156,1762129838739,-500.0,0.00018787,2]
[392912157,1762129838748,-215.51141417,0.00018787,2]
[392912158,1762129838758,-500.0,0.00018787,2]
[392912159,1762129838767,-455.37927478,0.00018787,2]
[392912160,1762129838777,-500.0,0.00018787,2]
[392912161,1762129838787,-223.8519291,0.00018787,2]
[392912162,1762129838796,-168.55017042,0.00018787,2]
[392912163,1762129838805,-229.07583948,0.00018787,2]
[392912164,1762129838814,-500.0,0.00018787,2]
[392912166,1762129838824,-500.0,0.00018787,2]
[392912168,1762129838833,-258.17842572,0.00018787,2]
[392912170,1762129838844,-241.82157428,0.00018787,2]
[392912172,1762129838854,-500.0,0.00018787,2]
[392912174,1762129838863,-500.0,0.00018787,2]
[392912176,1762129838872,-27997.79201927,0.00018788,2]
[392912177,1762129838884,-22002.20798073,0.00018788,2]
[392912178,1762129838893,-500.0,0.00018791,2]
[392912179,1762129838903,-500.0,0.00018791,2]
[392912180,1762129838912,-168.0,0.00018792,2]
[392912181,1762129838922,-500.0,0.00018799,2]
[392912182,1762129838932,-2904.76582536,0.000188,2]
[392912183,1762129838941,-735.52,0.000188,2]
[392912184,1762129838951,-2904.76582532,0.00018825,2]
[392912185,1762129838960,-315.0,0.00018844,2]
[392912186,1762129838969,-168.0,0.00018848,2]
[392912187,1762129838978,-2904.76582532,0.0001885,2]
[392912188,1762129838987,-1147.29958705,0.00018871,2]
[392912189,1762129838997,-336.36325052,0.00018873,2]
[392912190,1762129839006,-500.0,0.00018873,2]
[392912191,1762129839015,-2904.76582532,0.00018875,2]
[392912192,1762129839024,-3410.463167,0.00018878,2]
[392912193,1762129839034,-288.1886428,0.00018878,2]
[392912194,1762129839044,-500.0,0.00018897,2]
[392912195,1762129839054,-500.0,0.00018899,2]
[392912196,1762129839068,-226.746124,0.000189,2]
[392912197,1762129839077,-158.486226,0.000189,2]
[392912198,1762129839087,-500.0,0.000189,2]
[392912199,1762129839096,-591.5954373,0.000189,2]
[392912200,1762129839106,-2904.76582532,0.000189,2]
[392912201,1762129839115,-7222.70911654,0.000189,2]
[392912202,1762129839124,-151.97865333,0.000189,2]
[392912203,1762129839134,-165.77871809,0.000189,2]
[392912204,1762129839143,-198.0,0.000189,2]
[392912205,1762129839152,-151.0,0.000189,2]
[392912206,1762129839162,-158.34985918,0.000189,2]
[392912207,1762129839171,-152.43122754,0.000189,2]
[392912208,1762129839181,-151.59504801,0.000189,2]
[392912209,1762129839191,-200.76590249,0.000189,2]
[392912210,1762129839200,-151.0,0.000189,2]
[392912211,1762129839209,-151.0,0.000189,2]
[392912212,1762129839219,-151.0,0.000189,2]
[392912213,1762129839228,-151.0,0.000189,2]
[392912214,1762129839238,-151.0,0.000189,2]
[392912215,1762129839247,-151.0,0.000189,2]
[392912216,1762129839256,-151.0,0.000189,2]
[392912217,1762129839266,-434.40294913,0.00018922,2]
[392912218,1762129839278,-4565.59705087,0.00018922,2]
[392912219,1762129839287,-151.0,0.00018955,2]
[392912220,1762129839296,-151.0,0.00018955,2]
[392912221,1762129839305,-151.0,0.00018955,2]
[392912222,1762129839315,-151.0,0.00018955,2]
[392912223,1762129839324,-151.0,0.00018955,2]
[392912224,1762129839333,-151.0,0.00018955,2]
[392912225,1762129839342,-5000.0,0.00018955,2]
[392912226,1762129839352,-500.0,0.00018973,2]
[392912227,1762129839361,-500.0,0.00018973,2]
[392912228,1762129839370,-505.44469791,0.00018973,2]
[392912229,1762129839380,-500.0,0.00018973,2]
[392912230,1762129839389,-158.0,0.00018973,2]
[392912231,1762129839398,-511.44505115,0.00018973,2]
[392912232,1762129839407,-561.11574287,0.00018973,2]
[392912233,1762129839416,-501.94355084,0.00018973,2]
[392912234,1762129839425,-503.11692689,0.00018973,2]
[392912235,1762129839436,-221.67,0.00018989,2]
[392912236,1762129839445,-500.0,0.00018989,2]
[392912237,1762129839455,-1827.38344327,0.0001899,2]
[392912238,1762129839463,-5010.0,0.00018995,2]
[392912239,1762129839472,-500.0,0.00018999,2]
[392912240,1762129839482,-28.95026182,0.00018999,2]
[392912241,1762129839493,-148.27213824,0.00018999,2]
[392912242,1762129839502,-300.0,0.00019,2]
[392912243,1762129839511,-300.0,0.00019,2]
[392912244,1762129839521,-300.0,0.00019,2]
[392912245,1762129839529,-163.7731652,0.00019,2]
[392912246,1762129839539,-163.7731652,0.00019,2]
[392912247,1762129839548,-1178.8961139,0.00019,2]
[392912248,1762129839557,-591.5954373,0.00019,2]
[392912249,1762129839566,-735.52,0.00019,2]
[392912250,1762129839575,-411.4732872,0.00019,2]
[392912251,1762129839584,-166.7508845,0.00019,2]
[392912252,1762129839593,-198.0,0.0001901,2]
[392912253,1762129839602,-198.0,0.0001901,2]
[392912254,1762129839611,-258.47090245,0.0001901,2]
[392912255,1762129839621,-151.0,0.0001901,2]
[392912256,1762129839630,-198.0,0.0001901,2]
[392912257,1762129839640,-589.0,0.00019054,2]
[392912258,1762129839649,-198.0,0.00019064,2]
[392912259,1762129839658,-36521.6470233,0.00019091,2]
[392912260,1762129839667,-276.1785245,0.00019099,2]
[392912261,1762129839677,-272.68366299,0.00019099,2]
[392912262,1762129839688,-399.0752936,0.000191,2]
[392912263,1762129839698,-445.0879876,0.000191,2]
[392912264,1762129839707,-591.5954373,0.000191,2]
[392912265,1762129839717,-427.12551966,0.000191,2]
[392912266,1762129839727,-434.07484094,0.000191,2]
[392912267,1762129839736,-150.0,0.00019117,2]
[392912268,1762129839746,-500.0,0.00019174,2]
[392912269,1762129839756,-500.0,0.00019178,2]
[392912270,1762129839765,-500.0,0.00019178,2]
[392912271,1762129839774,-500.0,0.00019178,2]
[392912272,1762129839784,-500.0,0.00019178,2]
[392912273,1762129839794,-500.0,0.00019178,2]
[392912274,1762129839804,-500.0,0.00019178,2]
[392912275,1762129839813,-500.0,0.00019178,2]
[392912276,1762129839822,-500.0,0.00019178,2]
[392912277,1762129839831,-413.95027305,0.00019178,2]
[392912278,1762129839841,-500.0,0.00019178,2]
[392912279,1762129839851,-500.0,0.00019178,2]
[392912280,1762129839860,-151.0,0.00019178,2]
[392912281,1762129839870,-151.0,0.00019178,2]
[392912282,1762129839879,-151.0,0.00019178,2]
[392912283,1762129839888,-151.0,0.00019178,2]
[392912284,1762129839897,-151.0,0.00019178,2]
[392912285,1762129839907,-151.0,0.00019178,2]
[392912286,1762129839916,-170.824273,0.00019178,2]
[392912287,1762129839926,-170.824273,0.00019178,2]
[392912288,1762129839937,-170.824273,0.00019178,2]
[392912289,1762129839962,-170.824273,0.00019178,2]
[392912290,1762129839972,-170.824273,0.00019178,2]
[392912291,1762129839982,-170.824273,0.00019178,2]
[392912292,1762129839991,-170.824273,0.00019178,2]
[392912293,1762129840000,-170.824273,0.00019178,2]
[392912294,1762129840009,-170.824273,0.00019178,2]
[392912295,1762129840019,-170.824273,0.00019178,2]
[392912296,1762129840028,-170.824273,0.00019178,2]
[392912297,1762129840037,-170.824273,0.00019178,2]
[392912298,1762129840046,-170.824273,0.00019178,2]
[392912299,1762129840055,-170.824273,0.00019178,2]
[392912300,1762129840069,-170.824273,0.00019178,2]
[392912301,1762129840081,-170.824273,0.00019178,2]
[392912302,1762129840091,-151.0,0.00019178,2]
[392912303,1762129840100,-151.0,0.00019178,2]
[392912304,1762129840110,-151.0,0.00019178,2]
[392912305,1762129840120,-151.0,0.00019178,2]
[392912306,1762129840129,-151.0,0.00019178,2]
[392912307,1762129840140,-151.0,0.00019178,2]
[392912309,1762129840149,-151.0,0.00019178,2]
[392912310,1762129840159,-203.716256,0.00019178,2]
[392912311,1762129840168,-151.0,0.00019178,2]
[392912312,1762129840177,-151.0,0.00019178,2]
[392912313,1762129840186,-22.75728664,0.00019178,2]
[392912314,1762129840198,-128.24271336,0.00019178,2]
[392912316,1762129840207,-151.0,0.00019178,2]
[392912317,1762129840216,-151.0,0.00019178,2]
[392912318,1762129840225,-170.533645,0.00019178,2]
[392912319,1762129840233,-151.0,0.00019178,2]
[392912320,1762129840242,-160.0,0.00019191,2]
[392912321,1762129840251,-735.52,0.000192,2]
[392912322,1762129840261,-1706.79357655,0.00019206,2]
[392912323,1762129840269,-168.0,0.00019231,2]
[392912324,1762129840278,-500.0,0.00019233,2]
[392912325,1762129840287,-500.0,0.00019233,2]
[392912326,1762129840297,-500.0,0.00019233,2]
[392912327,1762129840307,-500.0,0.00019233,2]
[392912328,1762129840315,-431.01022642,0.00019288,2]
[392912329,1762129840324,-563.38630883,0.00019288,2]
[392912330,1762129840334,-386.44049989,0.00019288,2]
[392912331,1762129840343,-500.0,0.00019288,2]
[392912333,1762129840353,-500.0,0.00019342,2]
[392912334,1762129840362,-478.67254325,0.00019391,2]
[392912336,1762129840371,-589.0,0.00019391,2]
[392912338,1762129840380,-500.0,0.00019397,2]
[392912339,1762129840389,-735.52,0.000194,2]
[392912341,1762129840398,-500.0,0.00019452,2]
[392912343,1762129840407,-505.90494092,0.00019507,2]
[392912345,1762129840415,-1000.0,0.00019521,2]
[392912346,1762129840424,-735.52,0.000196,2]
[392912347,1762129840433,-260.0,0.00019739,2]
[392912348,1762129840443,-153.0000001,0.00019771,2]
[392912349,1762129840456,-243.2629249,0.00019771,2]
[392912350,1762129840465,-153.0,0.00019771,2]
[392912351,1762129840474,-190.7421231,0.00019771,2]
[392912352,1762129840483,-153.0,0.00019771,2]
[392912353,1762129840491,-153.0,0.00019771,2]
[392912354,1762129840500,-190.7421231,0.00019771,2]
[392912355,1762129840509,-190.7421231,0.00019771,2]
[392912356,1762129840518,-163.7731652,0.00019771,2]
[392912357,1762129840527,-163.7731652,0.00019771,2]
[392912358,1762129840535,-153.1364027,0.00019771,2]
[392912359,1762129840544,-624.7950888,0.00019771,2]
[392912360,1762129840552,-297.2920934,0.00019771,2]
[392912361,1762129840561,-153.0,0.00019771,2]
[392912362,1762129840570,-380.9490301,0.00019771,2]
[392912363,1762129840578,-591.5954373,0.00019771,2]
[392912365,1762129840587,-153.0,0.00019771,2]
[392912366,1762129840596,-153.0,0.00019771,2]
[392912367,1762129840605,-591.5954373,0.00019771,2]
[392912368,1762129840614,-578.9222931,0.00019771,2]
[392912369,1762129840623,-591.5954373,0.00019771,2]
[392912370,1762129840631,-591.5954373,0.00019771,2]
[392912371,1762129840641,-591.5954373,0.00019771,2]
[392912373,1762129840650,-527.1236228,0.00019771,2]
[392912374,1762129840659,-31377.31059272,0.000198,2]
[392912375,1762129840671,-27682.71256279,0.000198,2]
[392912376,1762129840760,-253.6589569,0.00018787,2]
[392912377,1762129840770,-493.10578705,0.00018787,2]
[392912378,1762129840779,-2090.96169492,0.000198,2]
[392912442,1762129888614,500.0,0.00037561,60]
[392912443,1762129898172,500.0,0.00037561,60]
[392912444,1762129904799,500.0,0.00037561,30]
[392912445,1762129921313,500.0,0.00037561,60]
[392912446,1762129930350,197.03,0.0001874,3]
[392912447,1762129941091,591.09,0.0001874,3]
[392912450,1762130038606,244.0,0.0002,10]
[392912452,1762130111317,151.0,0.00037515,60]
[392912453,1762130111922,156.587,0.00037515,60]
[392912454,1762130112569,162.380719,0.00037515,60]
[392912455,1762130113224,168.3888056,0.00037515,60]
[392912456,1762130113933,174.61919141,0.00037515,60]
[392912457,1762130114489,181.08010149,0.00037515,60]
[392912458,1762130115108,187.78006525,0.00037515,60]
[392912459,1762130115942,194.72792766,0.00037515,60]
[392912460,1762130116555,201.93286099,0.00037515,60]
[392912461,1762130117166,209.40437684,0.00037515,60]
[392912462,1762130117778,217.15233878,0.00037515,60]
[392912463,1762130118417,225.18697532,0.00037515,60]
[392912464,1762130119076,233.51889341,0.00037515,60]
[392912465,1762130119731,242.15909246,0.00037515,60]
[392912466,1762130120372,242.15909246,0.00037515,60]
[392912481,1762130286619,207.64,0.00016384,2]
[392912497,1762130462503,999.0,0.00017675,2]
[392912499,1762130503747,291.184,0.00018375,2]
[392912500,1762130536134,394.06,0.0001874,3]
[392912501,1762130564680,1000.0,0.00037517,20]
[392912502,1762130567703,1674.6751193,0.00017667,2]
[392912503,1762130593920,1041.0,0.00037517,20]
[392912510,1762130675481,1000.0,0.00017658,2]
[392912512,1762130744960,500.0,0.00037517,60]
[392912514,1762130763942,3650.67519993,0.00018568,2]
[392912517,1762130829461,-2293.13251602,0.000186,2]
[392912518,1762130844818,-327.88899075,0.00018609,2]
[392912519,1762130844848,-2293.132516,0.00018617,2]
[392912520,1762130844877,-2293.132516,0.00018634,2]
[392912521,1762130845007,-300.0,0.00018649,2]
[392912522,1762130845035,-1200.0,0.0001865,2]
[392912523,1762130845065,-500.0,0.0001865,2]
[392912524,1762130845093,-500.0,0.0001865,2]
[392912525,1762130845124,-2293.132516,0.00018651,2]
[392912526,1762130845153,-193.475946,0.00018659,2]
[392912527,1762130845265,-266.0,0.00018665,2]
[392912528,1762130845293,-300.0,0.00018665,2]
[392912529,1762130845321,-300.0,0.00018665,2]
[392912530,1762130845350,-300.0,0.00018665,2]
[392912531,1762130845376,-898.0,0.00018666,2]
[392912532,1762130845795,-3058.26517584,0.00018667,2]
[392912533,1762130845820,-10000.01,0.00018667,2]
[392912534,1762130845844,-10000.01,0.00018667,2]
[392912535,1762130845859,-10000.01,0.00018667,2]
[392912536,1762130845931,-10000.01,0.00018667,2]
[392912537,1762130845961,-3058.31517584,0.00018667,2]
[392912538,1762130845984,-3883.37964832,0.00018667,2]
[392912539,1762130848199,-2293.132516,0.00018668,2]
[392912540,1762130848226,-598.60555698,0.00018668,2]
[392912541,1762130848262,-4216.53385404,0.00018668,2]
[392912542,1762130848302,-10000.01,0.000187,2]
[392912543,1762130848434,-789.74,0.000187,2]
[392912544,1762130848473,-8420.53,0.000187,2]
[392912545,1762130848574,-2369.22,0.000187,2]
[392912546,1762130848610,-5261.57,0.000187,2]
[392912547,1762130854348,-4471.83,0.000187,2]
[392912548,1762130854370,-1056.35,0.000187,2]
[392912549,1762130854479,-10000.01,0.000187,2]
[392912550,1762130854591,-789.74,0.000187,2]
[392912551,1762130854624,-8420.53,0.000187,2]
[392912552,1762130854700,-2369.22,0.000187,2]
[392912553,1762130854738,-5261.57,0.000187,2]
[392912554,1762130854823,-4471.83,0.000187,2]
[392912555,1762130854845,-1056.35,0.000187,2]
[392912556,1762130854939,-10000.01,0.000187,2]
[392912557,1762130857648,-789.74,0.000187,2]
[392912558,1762130857687,-8420.53,0.0001875,2]
[392912559,1762130857838,-10000.01,0.0001875,2]
[392912560,1762130857938,-10000.01,0.0001875,2]
[392912561,1762130858091,-10000.01,0.0001875,2]
[392912562,1762130858195,-10000.01,0.0001875,2]
[392912563,1762130860813,-10000.01,0.0001875,2]
[392912564,1762130860851,-10000.01,0.0001875,2]
[392912565,1762130860951,-10000.01,0.0001875,2]
[392912566,1762130861069,-10000.01,0.0001875,2]
[392912567,1762130861201,-10000.01,0.0001875,2]
[392912568,1762130864038,-10000.01,0.0001875,2]
[392912569,1762130864146,-10000.01,0.0001875,2]
[392912570,1762130864258,-10000.01,0.0001875,2]
[392912571,1762130864461,-10000.01,0.0001875,2]
[392912572,1762130864611,-10000.01,0.0001875,2]
[392912573,1762130868207,-10000.01,0.0001875,2]
[392912574,1762130873285,-10000.01,0.0001875,2]
[392912575,1762130873398,-10000.01,0.0001875,2]
[392912576,1762130873508,-10000.01,0.0001875,2]
[392912577,1762130873620,-10000.01,0.0001875,2]
[392912578,1762130873729,-10000.01,0.0001875,2]
[392912579,1762130876788,-10000.01,0.0001875,2]
[392912581,1762130902009,5000.0,0.00018313,2]
[392912582,1762130903139,-500.00000003,0.00018376,2]
[392912583,1762130906987,-247.31283943,0.00018376,2]
[392912584,1762130908638,-310.15078932,0.00018376,2]
[392912585,1762130910883,-358.60823779,0.00018376,2]
[392912586,1762130913126,-162.02216189,0.00018376,2]
[392912590,1762130932885,-290.41961779,0.00018192,2]
[392912591,1762130935112,-280.61190905,0.00018192,2]
[392912592,1762130936586,-307.12045057,0.00018192,2]
[392912593,1762130938667,-176.96052922,0.00018192,2]